fUST/lending_fUST_20250923
["ID","MTS","AMOUNT","RATE_DAILY","PERIOD"]
[387064564,1758558649053,-480.0,0.00019178,2]
[387064566,1758558649062,-480.0,0.00019178,2]
[387064568,1758558649072,-480.0,0.00019178,2]
[387064570,1758558649082,-480.0,0.00019178,2]
[387064572,1758558649091,-480.0,0.00019178,2]
[387064574,1758558649101,-480.0,0.00019178,2]
[387064576,1758558649110,-480.0,0.00019178,2]
[387064578,1758558649119,-480.0,0.00019178,2]
[387064580,1758558649129,-480.0,0.00019178,2]
[387064582,1758558649139,-480.0,0.00019178,2]
[387064584,1758558649148,-480.0,0.00019178,2]
[387064586,1758558649158,-480.0,0.00019178,2]
[387064588,1758558649167,-480.0,0.00019178,2]
[387064590,1758558649177,-480.0,0.00019178,2]
[387064592,1758558649187,-480.0,0.00019178,2]
[387064594,1758558649197,-526.14,0.00019178,2]
[387064596,1758558649208,-480.0,0.00019178,2]
[387064598,1758558649218,-480.0,0.00019178,2]
[387064600,1758558649228,-480.0,0.00019178,2]
[387064602,1758558649238,-25.70485394,0.00019178,2]
[387064604,1758558649250,-454.29514606,0.00019178,2]
[387064606,1758558649261,-44.94450316,0.00019178,2]
[387064608,1758558649272,-435.05549684,0.00019178,2]
[387064610,1758558649282,-480.0,0.00019178,2]
[387064612,1758558649292,-108.01528345,0.00019178,2]
[387065994,1758558664179,-565.58331736,0.00029213,30]
[387065995,1758558664205,-1514.41805025,0.00029213,30]
[387065996,1758558664230,-341.46016439,0.00029213,30]
[387065998,1758558664260,-8191.67723948,0.00029213,30]
[387066002,1758558664286,-1202.15273977,0.00029213,30]
[387066005,1758558664312,-5205.88582451,0.00029213,32]
[387066008,1758558664339,-2497.23582137,0.00029213,30]
[387066012,1758558664371,-677.80063993,0.00029213,30]
[387066016,1758558664395,-247.33090711,0.00029213,30]
[387066019,1758558664420,-1869.31284628,0.00029213,30]
[387066023,1758558664445,-7965.25800876,0.00029213,30]
[387066027,1758558664472,-511.76036642,0.00029213,30]
[387066030,1758558664498,-5041.42240336,0.00029213,30]
[387066034,1758558664525,-515.89909419,0.00029213,30]
[387066038,1758558664554,-179.54615327,0.00029213,30]
[387066041,1758558664582,-1531.36939649,0.00029213,30]
[387066045,1758558664609,-5116.63346461,0.00029213,30]
[387066048,1758558664636,-707.4088052,0.00029213,30]
[387068767,1758558693732,-2774231.82423937,0.00029213,20]
[387068770,1758558693761,-374136.87611499,0.00029213,20]
[387068772,1758558693789,-187902.66718234,0.00029213,20]
[387068773,1758558693815,-415156.77417387,0.00029213,20]
[387068774,1758558693842,-648976.59416518,0.00029213,20]
[387068775,1758558693867,-1752637.3558215,0.00029213,20]
[387068776,1758558693896,-593537.27772799,0.00029213,20]
[387068777,1758558693921,-253420.63057476,0.00029213,20]
[387069512,1758558703073,-4169171.01223879,0.00029213,20]
[387069516,1758558703103,-830828.98776121,0.00029213,20]
[387069535,1758558743305,1000.0,0.00029213,60]
[387069536,1758558744715,1000.0,0.00029213,60]
[387069537,1758558745330,1000.0,0.00029213,60]
[387069538,1758558745698,1000.0,0.00029213,60]
[387069539,1758558746147,1000.0,0.00029213,60]
[387069540,1758558746545,1000.0,0.00029213,60]
[387069541,1758558746868,1000.0,0.00029213,60]
[387069542,1758558747207,1000.0,0.00029213,60]
[387069543,1758558747508,1000.0,0.00029213,60]
[387069544,1758558747844,1000.0,0.00029213,60]
[387069545,1758558748409,1000.0,0.00029213,60]
[387069546,1758558748818,1000.0,0.00029213,60]
[387069547,1758558781876,1288.28,0.00029213,60]
[387069548,1758558798123,1000.0,0.00029213,60]
[387069549,1758558798723,1000.0,0.00029213,60]
[387069550,1758558799044,1000.0,0.00029213,60]
[387069551,1758558799377,1000.0,0.00029213,60]
[387069552,1758558800111,1000.0,0.00029213,60]
[387069553,1758558800467,1000.0,0.00029213,60]
[387069554,1758558800925,1000.0,0.00029213,60]
[387069555,1758558816188,1000.0,0.00029213,60]
[387069556,1758558830278,172.497318,0.0001812,2]
[387069557,1758558835307,9827.512682,0.00018934,2]
[387069558,1758558835329,10000.01,0.00018934,2]
[387069559,1758558835351,10000.01,0.00018934,2]
[387069560,1758558835372,10000.01,0.00018934,2]
[387069561,1758558835394,10000.01,0.00018934,2]
[387069562,1758558835416,10000.01,0.00018934,2]
[387069563,1758558835438,10000.01,0.00018934,2]
[387069564,1758558835462,10000.01,0.00018934,2]
[387069565,1758558835484,10000.01,0.00018934,2]
[387069566,1758558835506,10000.01,0.00018934,2]
[387069567,1758558835534,270172.397318,0.00018934,2]
[387069600,1758558937295,1000.0,0.00018084,2]
[387069602,1758558996449,237.907039,0.0001846,2]
[387069603,1758559035941,3604.5170076,0.00018043,2]
[387069604,1758559077794,3000.0,0.00029201,60]
[387069649,1758559383715,405.459072,0.00018059,2]
[387069650,1758559387628,380.0,0.00027397,120]
[387069653,1758559760436,-10000000.0,0.00029206,20]
[387069677,1758559832108,-300.0,0.00019023,2]
[387069678,1758559832118,-396.64383613,0.00019023,2]
[387069679,1758559832129,-501.35616387,0.00019023,2]
[387069680,1758559832139,-50000.0,0.00019024,2]
[387069681,1758559832147,-500.0,0.00019024,2]
[387069682,1758559832157,-405.49584303,0.00019024,2]
[387069683,1758559832166,-1171.52208269,0.00019024,2]
[387069684,1758559832175,-216.52396977,0.00019024,2]
[387069685,1758559832184,-1171.52208269,0.00019024,2]
[387069686,1758559832193,-1171.52208269,0.00019024,2]
[387069688,1758559832202,-1171.52208269,0.00019024,2]
[387069690,1758559832212,-1171.52208269,0.00019024,2]
[387069692,1758559832221,-1171.52208269,0.00019024,2]
[387069695,1758559832230,-1171.52208269,0.00019024,2]
[387069697,1758559832239,-1171.52208269,0.00019024,2]
[387069698,1758559832248,-1171.52208269,0.00019024,2]
[387069699,1758559832257,-1171.52208269,0.00019024,2]
[387069701,1758559832266,-1171.52208269,0.00019024,2]
[387069702,1758559832275,-1171.52208269,0.00019024,2]
[387069705,1758559832284,-1171.52208269,0.00019024,2]
[387069708,1758559832293,-1171.52208269,0.00019024,2]
[387069711,1758559832303,-1171.52208269,0.00019024,2]
[387069713,1758559832312,-500.0,0.00019024,2]
[387069716,1758559832321,-500.0,0.00019024,2]
[387069719,1758559832330,-500.0,0.00019024,2]
[387069722,1758559832339,-500.0,0.00019024,2]
[387069725,1758559832348,-415.47360759,0.00019024,2]
[387069727,1758559832357,-500.0,0.00019024,2]
[387069728,1758559832367,-500.0,0.00019024,2]
[387069729,1758559832376,-500.0,0.00019024,2]
[387069731,1758559832385,-232.62058034,0.00019024,2]
[387069734,1758559832404,-267.37941966,0.00019024,2]
[387069736,1758559832413,-500.0,0.00019024,2]
[387069738,1758559832422,-1171.52208269,0.00019024,2]
[387069740,1758559832433,-500.0,0.00019024,2]
[387069742,1758559832442,-500.0,0.00019024,2]
[387069744,1758559832451,-380.14656419,0.00019024,2]
[387069746,1758559832460,-486.74444791,0.00019024,2]
[387069748,1758559832469,-500.0,0.00019024,2]
[387069750,1758559832478,-500.0,0.00019024,2]
[387069752,1758559832487,-500.0,0.00019024,2]
[387069754,1758559832497,-500.0,0.00019024,2]
[387069756,1758559832507,-484.41571985,0.00019024,2]
[387069758,1758559832515,-500.0,0.00019024,2]
[387069760,1758559832525,-500.0,0.00019024,2]
[387069761,1758559832533,-284.99139764,0.00019024,2]
[387069764,1758559832543,-500.0,0.00019024,2]
[387069766,1758559832552,-500.0,0.00019024,2]
[387069768,1758559832562,-500.0,0.00019024,2]
[387069770,1758559832571,-500.0,0.00019024,2]
[387069772,1758559832580,-500.0,0.00019024,2]
[387069774,1758559832589,-1171.52208269,0.00019024,2]
[387069776,1758559832598,-1171.52208269,0.00019024,2]
[387069777,1758559832608,-559.79946867,0.00019024,2]
[387069779,1758559832618,-1259.38623889,0.00019024,2]
[387069781,1758559832628,-1259.38623889,0.00019024,2]
[387069783,1758559832637,-1259.38623889,0.00019024,2]
[387069785,1758559832647,-1259.38623889,0.00019024,2]
[387069786,1758559832656,-1259.38623889,0.00019024,2]
[387069788,1758559832665,-1259.38623889,0.00019024,2]
[387069790,1758559832674,-1259.38623889,0.00019024,2]
[387069792,1758559832683,-1259.38623889,0.00019024,2]
[387069794,1758559832692,-375.57184046,0.00019024,2]
[387069796,1758559832702,-198.33237751,0.00019024,2]
[387069798,1758559832711,-2193.76957743,0.00019024,2]
[387069800,1758559832721,-1200.0,0.00019024,2]
[387069802,1758559832731,-97982.14837014,0.00019077,2]
[387069804,1758559832740,-500.0,0.000191,2]
[387069806,1758559832750,-327.39020075,0.00019173,2]
[387069808,1758559832759,-500.0,0.00019173,2]
[387069810,1758559832768,-480.0,0.00019178,2]
[387069812,1758559832777,-480.0,0.00019178,2]
[387069814,1758559832787,-480.0,0.00019178,2]
[387069816,1758559832796,-488.90367269,0.00019178,2]
[387069818,1758559832805,-480.0,0.00019178,2]
[387069820,1758559832814,-480.0,0.00019178,2]
[387069822,1758559832824,-480.0,0.00019178,2]
[387069824,1758559832833,-480.0,0.00019178,2]
[387069826,1758559832843,-480.0,0.00019178,2]
[387069828,1758559832852,-480.0,0.00019178,2]
[387069830,1758559832863,-480.0,0.00019178,2]
[387069832,1758559832872,-616.61569811,0.00019178,2]
[387069834,1758559832881,-480.0,0.00019178,2]
[387069836,1758559832891,-480.0,0.00019178,2]
[387069838,1758559832901,-480.0,0.00019178,2]
[387069840,1758559832916,-480.0,0.00019178,2]
[387069842,1758559832925,-457.09722022,0.00019178,2]
[387069844,1758559832934,-482.54867448,0.00019178,2]
[387069846,1758559832944,-480.0,0.00019178,2]
[387069848,1758559832954,-480.0,0.00019178,2]
[387069850,1758559832963,-486.78,0.00019178,2]
[387069852,1758559832972,-482.46802352,0.00019178,2]
[387069854,1758559832982,-480.0,0.00019178,2]
[387069856,1758559832995,-480.0,0.00019178,2]
[387069859,1758559833007,-480.0,0.00019178,2]
[387069861,1758559833020,-480.0,0.00019178,2]
[387069863,1758559833032,-480.0,0.00019178,2]
[387069866,1758559833045,-480.0,0.00019178,2]
[387069868,1758559833056,-480.0,0.00019178,2]
[387069870,1758559833067,-480.0,0.00019178,2]
[387069872,1758559833078,-195.4538546,0.00019178,2]
[387069874,1758559833088,-480.0,0.00019178,2]
[387069876,1758559833099,-500.0,0.00019178,2]
[387069878,1758559833111,-480.0,0.00019178,2]
[387069881,1758559833122,-480.0,0.00019178,2]
[387069883,1758559833134,-480.0,0.00019178,2]
[387069885,1758559833145,-480.0,0.00019178,2]
[387069887,1758559833157,-480.0,0.00019178,2]
[387069889,1758559833169,-480.0,0.00019178,2]
[387069892,1758559833180,-480.0,0.00019178,2]
[387069894,1758559833191,-480.0,0.00019178,2]
[387069896,1758559833203,-480.0,0.00019178,2]
[387069898,1758559833214,-469.1788057,0.00019178,2]
[387069900,1758559833226,-483.21,0.00019178,2]
[387069903,1758559833239,-480.0,0.00019178,2]
[387069905,1758559833250,-480.0,0.00019178,2]
[387069907,1758559833262,-430.64252563,0.00019178,2]
[387069909,1758559833272,-480.0,0.00019178,2]
[387069911,1758559833283,-480.0,0.00019178,2]
[387069914,1758559833295,-480.0,0.00019178,2]
[387069916,1758559833308,-480.0,0.00019178,2]
[387069918,1758559833319,-480.0,0.00019178,2]
[387069920,1758559833330,-480.0,0.00019178,2]
[387069922,1758559833342,-480.0,0.00019178,2]
[387069925,1758559833353,-480.0,0.00019178,2]
[387069927,1758559833365,-480.0,0.00019178,2]
[387069929,1758559833377,-480.0,0.00019178,2]
[387069931,1758559833388,-480.0,0.00019178,2]
[387069933,1758559833399,-500.0,0.00019178,2]
[387069935,1758559833409,-480.0,0.00019178,2]
[387069937,1758559833419,-480.0,0.00019178,2]
[387069939,1758559833431,-480.0,0.00019178,2]
[387069941,1758559833442,-480.0,0.00019178,2]
[387069944,1758559833453,-371.98471655,0.00019178,2]
[387069946,1758559833465,-480.0,0.00019178,2]
[387069948,1758559833477,-480.0,0.00019178,2]
[387069950,1758559833488,-480.0,0.00019178,2]
[387069952,1758559833501,-480.0,0.00019178,2]
[387069955,1758559833512,-480.0,0.00019178,2]
[387069957,1758559833522,-480.0,0.00019178,2]
[387069959,1758559833534,-480.0,0.00019178,2]
[387069961,1758559833546,-480.0,0.00019178,2]
[387069963,1758559833558,-480.0,0.00019178,2]
[387069966,1758559833569,-480.0,0.00019178,2]
[387069968,1758559833582,-480.0,0.00019178,2]
[387069970,1758559833594,-480.0,0.00019178,2]
[387069972,1758559833604,-480.0,0.00019178,2]
[387069975,1758559833616,-480.0,0.00019178,2]
[387069977,1758559833626,-480.0,0.00019178,2]
[387069979,1758559833636,-480.0,0.00019178,2]
[387069981,1758559833647,-439.4470759,0.00019178,2]
[387069983,1758559833657,-480.0,0.00019178,2]
[387069985,1758559833668,-480.0,0.00019178,2]
[387069987,1758559833680,-1531.99,0.00019178,2]
[387069990,1758559833693,-488.04220272,0.00019178,2]
[387069992,1758559833704,-480.0,0.00019178,2]
[387069994,1758559833716,-480.0,0.00019178,2]
[387069996,1758559833727,-480.0,0.00019178,2]
[387069998,1758559833737,-480.0,0.00019178,2]
[387070000,1758559833748,-480.0,0.00019178,2]
[387070002,1758559833759,-489.92,0.00019178,2]
[387070004,1758559833770,-480.0,0.00019178,2]
[387070007,1758559833781,-480.0,0.00019178,2]
[387070009,1758559833794,-984.69,0.00019178,2]
[387070011,1758559833806,-3142.03,0.00019178,2]
[387070013,1758559833816,-480.0,0.00019178,2]
[387070015,1758559833826,-480.0,0.00019178,2]
[387070017,1758559833836,-480.0,0.00019178,2]
[387070019,1758559833846,-480.0,0.00019178,2]
[387070022,1758559833857,-266.12639133,0.00019178,2]
[387070024,1758559833871,-480.0,0.00019178,2]
[387070026,1758559833883,-480.0,0.00019178,2]
[387070028,1758559833894,-480.0,0.00019178,2]
[387070030,1758559833905,-480.0,0.00019178,2]
[387070032,1758559833920,-480.0,0.00019178,2]
[387070034,1758559833931,-480.0,0.00019178,2]
[387070037,1758559833942,-480.0,0.00019178,2]
[387070039,1758559833954,-209.52565106,0.00019178,2]
[387070041,1758559833965,-480.0,0.00019178,2]
[387070043,1758559833976,-480.0,0.00019178,2]
[387070044,1758559833987,-480.0,0.00019178,2]
[387070045,1758559833998,-480.0,0.00019178,2]
[387070046,1758559834009,-480.0,0.00019178,2]
[387070047,1758559834020,-480.0,0.00019178,2]
[387070049,1758559834031,-480.0,0.00019178,2]
[387070051,1758559834042,-480.0,0.00019178,2]
[387070053,1758559834052,-480.0,0.00019178,2]
[387070055,1758559834063,-480.0,0.00019178,2]
[387070057,1758559834075,-1023.85,0.00019178,2]
[387070059,1758559834086,-1559.89,0.00019178,2]
[387070061,1758559834097,-480.0,0.00019178,2]
[387070064,1758559834108,-480.0,0.00019178,2]
[387070066,1758559834119,-480.0,0.00019178,2]
[387070068,1758559834130,-480.0,0.00019178,2]
[387070070,1758559834141,-480.0,0.00019178,2]
[387070072,1758559834152,-684.8,0.00019178,2]
[387070074,1758559834162,-480.0,0.00019178,2]
[387070076,1758559834173,-480.0,0.00019178,2]
[387070078,1758559834183,-480.0,0.00019178,2]
[387070080,1758559834194,-480.0,0.00019178,2]
[387070082,1758559834205,-480.0,0.00019178,2]
[387070084,1758559834216,-480.0,0.00019178,2]
[387070087,1758559834226,-480.0,0.00019178,2]
[387070089,1758559834237,-480.0,0.00019178,2]
[387070091,1758559834248,-480.0,0.00019178,2]
[387070093,1758559834258,-218.05647226,0.00019178,2]
[387070095,1758559834269,-480.0,0.00019178,2]
[387070097,1758559834279,-482.7268594,0.00019178,2]
[387070099,1758559834290,-480.0,0.00019178,2]
[387070101,1758559834302,-485.0669406,0.00019178,2]
[387070103,1758559834312,-480.0,0.00019178,2]
[387070106,1758559834323,-480.0,0.00019178,2]
[387070108,1758559834334,-480.0,0.00019178,2]
[387070110,1758559834345,-480.0,0.00019178,2]
[387070112,1758559834355,-755.15,0.00019178,2]
[387070114,1758559834366,-481.5893848,0.00019178,2]
[387070116,1758559834376,-480.0,0.00019178,2]
[387070118,1758559834387,-321.78034027,0.00019178,2]
[387070120,1758559834397,-480.0,0.00019178,2]
[387070122,1758559834408,-480.0,0.00019178,2]
[387070125,1758559834418,-480.0,0.00019178,2]
[387070127,1758559834428,-480.0,0.00019178,2]
[387070129,1758559834438,-480.0,0.00019178,2]
[387070131,1758559834449,-480.0,0.00019178,2]
[387070133,1758559834460,-484.87668878,0.00019178,2]
[387070135,1758559834469,-650.14,0.00019178,2]
[387070137,1758559834480,-368.74225485,0.00019178,2]
[387070139,1758559834490,-480.0,0.00019178,2]
[387070142,1758559834501,-480.0,0.00019178,2]
[387070144,1758559834512,-480.0,0.00019178,2]
[387070146,1758559834523,-480.0,0.00019178,2]
[387070165,1758559834684,-675.96,0.00019178,2]
[387070167,1758559834696,-480.0,0.00019178,2]
[387070169,1758559834705,-480.0,0.00019178,2]
[387070171,1758559834715,-480.0,0.00019178,2]
[387070173,1758559834725,-578.45,0.00019178,2]
[387070175,1758559834734,-480.0,0.00019178,2]
[387070177,1758559834743,-500.0,0.00019298,2]
[387070179,1758559834753,-473.97225947,0.00019352,2]
[387070181,1758559834763,-500.0,0.00019421,2]
[387070183,1758559834772,-500.0,0.00019421,2]
[387070185,1758559834781,-500.0,0.00019421,2]
[387070187,1758559834790,-500.0,0.00019421,2]
[387070189,1758559834799,-500.0,0.00019421,2]
[387070191,1758559834808,-500.0,0.00019421,2]
[387070193,1758559834818,-500.0,0.00019421,2]
[387070195,1758559834827,-500.0,0.00019421,2]
[387070197,1758559834836,-500.0,0.00019421,2]
[387070199,1758559834845,-500.0,0.00019421,2]
[387070200,1758559834856,-500.0,0.00019421,2]
[387070203,1758559834867,-480.0,0.00019452,2]
[387070205,1758559834876,-226.79188805,0.00019452,2]
[387070207,1758559834885,-480.0,0.00019452,2]
[387070209,1758559834894,-480.0,0.00019452,2]
[387070211,1758559834904,-583.35,0.00019452,2]
[387070213,1758559834918,-480.0,0.00019452,2]
[387070215,1758559834927,-480.0,0.00019452,2]
[387070217,1758559834936,-480.0,0.00019452,2]
[387070219,1758559834945,-480.0,0.00019452,2]
[387070221,1758559834956,-480.0,0.00019452,2]
[387070223,1758559834965,-480.0,0.00019452,2]
[387070225,1758559834975,-480.0,0.00019452,2]
[387070227,1758559834985,-480.0,0.00019452,2]
[387070229,1758559834994,-480.0,0.00019452,2]
[387070230,1758559835004,-291.24,0.00019452,2]
[387070232,1758559835013,-157.03,0.00019452,2]
[387070234,1758559835022,-1531.99,0.00019452,2]
[387070237,1758559835032,-480.0,0.00019452,2]
[387070239,1758559835041,-480.0,0.00019452,2]
[387070241,1758559835051,-480.0,0.00019452,2]
[387070243,1758559835060,-489.92,0.00019452,2]
[387070244,1758559835070,-480.0,0.00019452,2]
[387070246,1758559835080,-332.12296721,0.00019452,2]
[387070249,1758559835089,-984.69,0.00019452,2]
[387070251,1758559835099,-3142.03,0.00019452,2]
[387070253,1758559835108,-480.0,0.00019452,2]
[387070255,1758559835118,-595.94151076,0.00019452,2]
[387070257,1758559835127,-480.0,0.00019452,2]
[387070259,1758559835137,-480.0,0.00019452,2]
[387070261,1758559835146,-480.0,0.00019452,2]
[387070263,1758559835155,-485.36505383,0.00019452,2]
[387070265,1758559835165,-480.0,0.00019452,2]
[387070267,1758559835174,-480.0,0.00019452,2]
[387070269,1758559835184,-480.0,0.00019452,2]
[387070271,1758559835193,-480.0,0.00019452,2]
[387070273,1758559835202,-480.0,0.00019452,2]
[387070275,1758559835211,-480.0,0.00019452,2]
[387070277,1758559835220,-480.0,0.00019452,2]
[387070279,1758559835229,-480.0,0.00019452,2]
[387070281,1758559835239,-480.0,0.00019452,2]
[387070283,1758559835248,-1023.85,0.00019452,2]
[387070285,1758559835257,-1559.89,0.00019452,2]
[387070287,1758559835267,-480.0,0.00019452,2]
[387070289,1758559835276,-480.0,0.00019452,2]
[387070291,1758559835285,-684.8,0.00019452,2]
[387070293,1758559835295,-480.0,0.00019452,2]
[387070295,1758559835304,-488.6797101,0.00019452,2]
[387070297,1758559835313,-480.0,0.00019452,2]
[387070299,1758559835322,-480.0,0.00019452,2]
[387070301,1758559835331,-480.0,0.00019452,2]
[387070303,1758559835340,-480.0,0.00019452,2]
[387070305,1758559835350,-464.25802383,0.00019452,2]
[387070307,1758559835359,-480.0,0.00019452,2]
[387070309,1758559835369,-480.0,0.00019452,2]
[387070311,1758559835379,-480.0,0.00019452,2]
[387070313,1758559835388,-480.0,0.00019452,2]
[387070315,1758559835397,-480.0,0.00019452,2]
[387070317,1758559835406,-428.59222515,0.00019452,2]
[387070319,1758559835415,-755.15,0.00019452,2]
[387070321,1758559835425,-480.0,0.00019452,2]
[387070323,1758559835434,-480.0,0.00019452,2]
[387070325,1758559835443,-480.0,0.00019452,2]
[387070327,1758559835452,-650.14,0.00019452,2]
[387070329,1758559835461,-480.0,0.00019452,2]
[387070331,1758559835471,-675.96,0.00019452,2]
[387070333,1758559835480,-480.81,0.00019452,2]
[387070335,1758559835489,-480.0,0.00019452,2]
[387070337,1758559835499,-578.45,0.00019452,2]
[387070339,1758559835509,-1000.0,0.00019721,2]
[387070341,1758559835517,-252.28,0.00019726,2]
[387070343,1758559835527,-480.0,0.00019726,2]
[387070345,1758559835536,-480.0,0.00019726,2]
[387070347,1758559835545,-480.0,0.00019726,2]
[387070349,1758559835557,-1531.99,0.00019726,2]
[387070351,1758559835566,-480.0,0.00019726,2]
[387070353,1758559835575,-480.0,0.00019726,2]
[387070355,1758559835584,-489.92,0.00019726,2]
[387070357,1758559835593,-984.69,0.00019726,2]
[387070359,1758559835602,-3142.03,0.00019726,2]
[387070361,1758559835613,-480.0,0.00019726,2]
[387070363,1758559835622,-480.0,0.00019726,2]
[387070365,1758559835631,-480.0,0.00019726,2]
[387070367,1758559835641,-480.0,0.00019726,2]
[387070369,1758559835650,-480.0,0.00019726,2]
[387070371,1758559835659,-480.0,0.00019726,2]
[387070373,1758559835668,-480.0,0.00019726,2]
[387070375,1758559835677,-429.04095936,0.00019726,2]
[387070377,1758559835686,-480.0,0.00019726,2]
[387070379,1758559835695,-480.0,0.00019726,2]
[387070380,1758559835705,-1023.85,0.00019726,2]
[387070383,1758559835715,-1559.89,0.00019726,2]
[387070385,1758559835724,-480.0,0.00019726,2]
[387070386,1758559835733,-480.0,0.00019726,2]
[387070388,1758559835742,-684.8,0.00019726,2]
[387070390,1758559835751,-480.0,0.00019726,2]
[387070392,1758559835760,-480.0,0.00019726,2]
[387070394,1758559835769,-480.0,0.00019726,2]
[387070396,1758559835779,-480.0,0.00019726,2]
[387070398,1758559835788,-480.0,0.00019726,2]
[387070400,1758559835797,-480.0,0.00019726,2]
[387070402,1758559835806,-480.0,0.00019726,2]
[387070404,1758559835815,-480.0,0.00019726,2]
[387070406,1758559835824,-755.15,0.00019726,2]
[387070408,1758559835834,-480.0,0.00019726,2]
[387070410,1758559835843,-480.0,0.00019726,2]
[387070412,1758559835852,-480.0,0.00019726,2]
[387070414,1758559835863,-650.14,0.00019726,2]
[387070416,1758559835872,-480.0,0.00019726,2]
[387070418,1758559835881,-675.96,0.00019726,2]
[387070420,1758559835891,-578.45,0.00019726,2]
[387070422,1758559835900,-5587.35030662,0.000199,2]
[387070424,1758559835912,-8386.09556205,0.0002,2]
[387070427,1758559835923,-23000.0,0.0002,2]
[387070429,1758559835933,-2710.13223719,0.0002,2]
[387070431,1758559835942,-480.0,0.0002,2]
[387070433,1758559835952,-480.0,0.0002,2]
[387070435,1758559835961,-480.0,0.0002,2]
[387070437,1758559835971,-1531.99,0.0002,2]
[387070439,1758559835980,-480.0,0.0002,2]
[387070441,1758559835989,-480.0,0.0002,2]
[387070443,1758559835999,-489.92,0.0002,2]
[387070445,1758559836008,-984.69,0.0002,2]
[387070447,1758559836018,-3142.03,0.0002,2]
[387070449,1758559836028,-480.0,0.0002,2]
[387070451,1758559836037,-480.0,0.0002,2]
[387070453,1758559836046,-480.0,0.0002,2]
[387070455,1758559836055,-480.0,0.0002,2]
[387070457,1758559836065,-480.0,0.0002,2]
[387070459,1758559836074,-480.0,0.0002,2]
[387070461,1758559836083,-1023.85,0.0002,2]
[387070463,1758559836093,-1559.89,0.0002,2]
[387070465,1758559836102,-480.0,0.0002,2]
[387070467,1758559836113,-480.0,0.0002,2]
[387070469,1758559836123,-684.8,0.0002,2]
[387070471,1758559836132,-480.0,0.0002,2]
[387070473,1758559836141,-480.0,0.0002,2]
[387070475,1758559836150,-480.0,0.0002,2]
[387070477,1758559836159,-480.0,0.0002,2]
[387070479,1758559836168,-480.0,0.0002,2]
[387070481,1758559836178,-480.0,0.0002,2]
[387070483,1758559836187,-480.0,0.0002,2]
[387070485,1758559836196,-480.0,0.0002,2]
[387070487,1758559836206,-755.15,0.0002,2]
[387070489,1758559836215,-480.0,0.0002,2]
[387070491,1758559836224,-480.0,0.0002,2]
[387070492,1758559836233,-480.0,0.0002,2]
[387070494,1758559836242,-650.14,0.0002,2]
[387070496,1758559836252,-480.0,0.0002,2]
[387070498,1758559836261,-675.96,0.0002,2]
[387070500,1758559836271,-578.45,0.0002,2]
[387070502,1758559836280,-1211.88458911,0.00020173,2]
[387070504,1758559836289,-1500.0,0.00020268,2]
[387070506,1758559836299,-480.0,0.00020273,2]
[387070508,1758559836308,-480.0,0.00020273,2]
[387070510,1758559836317,-480.0,0.00020273,2]
[387070512,1758559836326,-1531.99,0.00020273,2]
[387070514,1758559836336,-480.0,0.00020273,2]